Cogmind - Beta 13 @@@ ROGUE MODE // 2024.04.15 @ 19:47:59 Player: Pitifulpancake Result: Destroyed by P-60 Hacker with Shock Rifle Performance ------------- Evolutions (3) 1500 Regions Visited (6) 1200 Robots Destroyed (126) 630 Value Destroyed (3825) 3825 Prototype IDs (11) 220 Alien Tech Used (0) 0 Bonus (353) 353 TOTAL SCORE: 7728 Bonus ------- High Alert Combat Kills 152 Follower Combat Kills 220 Friendly Fire -19 Cogmind --------- Core Integrity 0/700 Matter 157/300 Energy 325/325 System Corruption 6% Temperature Cool (0) Movement Core (400) Ox7 Location -7/Factory Parts ------- > --- POWER (1) -------- Antimatter Reactor > --- PROPULSION (3) --- (None) > --- UTILITY (7) ------ Hardened Medium Armor Plating Hacking Suite > --- WEAPON (2) ------- (None) > --- INVENTORY (5) ---- Improved Powered Armor Peak State ------------ > --- POWER ------------ Antimatter Reactor > --- PROPULSION ------- Heavy Treads Backup Propulsion III > --- UTILITY ---------- Improved Cooling System Hardened Medium Armor Plating Hardened Medium Armor Plating Hardened Medium Armor Plating Hardened Medium Armor Plating Hardened Medium Armor Plating Improved Shock Absorption System > --- WEAPON ----------- Battle Rifle Battle Rifle > --- INVENTORY -------- Improved Cooling System Backup Laser III Backup Laser III Beamcaster Beamcaster [Rating: 53] Favorites ----------- Power Heavy Ion Engine Engine Heavy Ion Engine Power Core Light Nuclear Core Reactor Heavy Antimatter Reactor Propulsion Light Treads Treads Light Treads Leg Aluminum Leg Wheel Armored Huge Wheel Hover Unit Backup Propulsion III Utility Hardened Medium Armor Plating Device Improved Cooling System Storage Small Storage Unit Processor Targeting Computer Hackware Hacking Suite Protection Hardened Medium Armor Plating Weapon Battle Rifle Energy Gun Improved EM Shotgun Energy Cannon Advanced Beam Cannon Ballistic Gun Battle Rifle Ballistic Cannon Gauss Cannon Impact Weapon Powered Hammer Slashing Weapon Katana Build | -11 -10 -9 -8 -7 -7 -7 ------- Run | Yrd Mat Mat Mat Fac Was Fac Slots Evolved 6 | . . 2 2 2 . . Power . | . . . . . . . Propulsion 1 | . . . 1 . . . Utility 5 | . . 2 1 2 . . Weapon . | . . . . . . . Parts Attached 142 | 6 1 44 43 12 21 15 Power 14 | 1 . 4 3 2 2 2 Engine 8 | 1 . 3 2 2 . . Core 3 | . . 1 1 . . 1 Reactor 3 | . . . . . 2 1 Propulsion 38 | 2 1 9 15 2 5 4 Treads 23 | . . 7 12 . 4 . Leg 11 | 2 1 2 3 2 1 . Wheel 3 | . . . . . . 3 Hover 1 | . . . . . . 1 Flight . | . . . . . . . Utility 45 | 1 . 14 12 4 9 5 Device 23 | . . 5 10 2 4 2 Storage 4 | 1 . 3 . . . . Processor 3 | . . 1 1 1 . . Hackware 4 | . . 1 . 1 . 2 Protection 11 | . . 4 1 . 5 1 Artifact . | . . . . . . . Weapon 45 | 2 . 17 13 4 5 4 Energy Gun 13 | 1 . 6 2 2 . 2 Energy Cannon 4 | . . 2 2 . . . Ballistic Gun 14 | 1 . 9 2 . 2 . Ballistic Cannon 9 | . . . 5 2 . 2 Launcher . | . . . . . . . Special Weapon . | . . . . . . . Impact Weapon 1 | . . . . . 1 . Slashing Weapon 4 | . . . 2 . 2 . Piercing Weapon . | . . . . . . . Special Melee Weapon . | . . . . . . . Unidentified Prototypes 5 | . . 3 . 1 1 . Parts Lost 48 | . . 7 16 3 11 11 Power 5 | . . 2 2 . 1 . Propulsion 11 | . . . 6 . 3 2 Utility 17 | . . 2 4 2 3 6 Weapon 15 | . . 3 4 1 4 3 Highest Loss Streak 11 | . . 2 8 2 11 6 To Critical Strikes 2 | . . . . . 2 . Average Slot Usage (%) 89 | . 85 95 96 95 79 71 Engine 6 | . 14 9 7 6 1 . Core 1 | . . 1 1 . . 1 Reactor 1 | . . . . . 4 5 Treads 14 | . . 17 24 11 5 3 Leg 4 | . 28 3 . 10 . . Device 10 | . . 5 17 20 16 8 Storage 7 | . 14 10 9 7 . . Processor 6 | . . 10 8 9 1 . Hackware 6 | . . 6 9 11 . 6 Protection 10 | . . 6 . . 28 27 Energy Gun 5 | . 14 6 8 1 . 2 Energy Cannon 3 | . . 8 1 . . . Ballistic Gun 6 | . 14 6 . . 13 7 Ballistic Cannon 3 | . . . 6 13 . 2 Naked Turns 54 | . . . . . 28 26 Heaviest Build 98 | 14 14 98 50 48 69 62 Greatest Support 70 | 20 20 40 60 60 70 70 Greatest Overweight (x) 18 | 3 . 2 7 2 4 18 Average Overweight (x) . | . . . . . . 1 Largest Inventory Capacity 25 | 8 8 25 15 15 15 5 Average Capacity 10 | 7 8 11 15 15 5 5 Most Carried 23 | 4 8 23 15 15 15 5 Average Carried 9 | 2 7 10 14 14 5 4 Final Capacity 15 | 8 8 15 15 15 5 5 Final Carried 15 | 4 8 15 15 15 5 1 Class Distribution -------------------- 76% | Mutant 17% | Scavenger-Mutant 6% | Hacker-Mutant Dominant Class ---------------- Mutant | -10/Materials Mutant | -9/Materials Mutant | -8/Materials Hacker-Mutant | -7/Factory Mutant | -7/Waste Mutant | -7/Factory Resources | -11 -10 -9 -8 -7 -7 -7 ----------- Run | Yrd Mat Mat Mat Fac Was Fac Matter Collected 3040 | 216 11 896 867 407 223 420 Remotely 736 | . . 244 . 407 57 28 Salvage Created 4751 | . 32 2570 1323 397 . 429 Parts 269 | . 5 165 58 20 . 21 Haulers Intercepted 5 | . . 4 . 1 . . Recyclers Shooed 5 | . . 2 . 2 . 1 Parts Field Recycled . | . . . . . . . Retrieved Matter . | . . . . . . . Parts Self-Destructed . | . . . . . . . Prevented . | . . . . . . . Kills | -11 -10 -9 -8 -7 -7 -7 ------- Run | Yrd Mat Mat Mat Fac Was Fac Combat Hostiles Destroyed 94 | . 3 43 30 8 . 10 Melee 3 | . . . 3 . . . Guns 51 | . 1 34 9 . . 7 Cannons 35 | . . 8 16 8 . 3 AOE 2 | . 2 . . . . . Classes Destroyed 12 | . 1 9 1 1 . . Worker 6 | . . 4 1 . . 1 Builder 3 | . . 1 2 . . . Hauler 5 | . . 4 . 1 . . Recycler 8 | . . 5 1 1 . 1 Operator 3 | . . 2 1 . . . Watcher 7 | . . 5 1 1 . . Swarmer 21 | . 3 10 5 . . 3 Grunt 53 | . . 22 19 7 . 5 Duelist 2 | . . 1 1 . . . Sentry 14 | . . 10 4 . . . Hunter 1 | . . . 1 . . . Programmer 3 | . . . . 1 . 2 Best Kill Streak 8 | . 3 8 7 3 . 5 Combat Bots Only 6 | . 3 6 4 2 . 5 Max Kills in Single Turn 2 | . 2 2 2 1 . 1 Gunslinging . | . . . . . . . Exploded 2 | . 2 . . . . . Melee 1 | . . . 1 . . . Uniques/NPCs Destroyed . | . . . . . . . Combat | -11 -10 -9 -8 -7 -7 -7 -------- Run | Yrd Mat Mat Mat Fac Was Fac Hostile Shots Fired 721 | . 7 192 276 40 19 187 Missed 178 | . 3 48 76 11 . 40 Damage Taken 8376 | . 67 1785 2919 478 831 2296 Core 1441 | . 9 193 535 29 347 328 Absorbed by Shields 234 | . . . 132 102 . . Regen/Repaired (Parts) 185 | . 43 101 . . 41 . Core Remaining (%) 62 | 100 96 51 2 . . . Volleys Fired 330 | . 4 147 81 35 1 62 Largest 2 | . 2 2 2 2 2 2 Hottest 150 | . 60 136 136 113 50 150 Shots Fired 631 | . 8 284 154 69 2 114 Gun 414 | . 8 242 71 7 2 84 Cannon 217 | . . 42 83 62 . 30 Launcher . | . . . . . . . Special . | . . . . . . . Kinetic 409 | . 4 147 96 62 2 98 Thermal 137 | . . 98 16 7 . 16 Explosive . | . . . . . . . Electromagnetic 85 | . 4 39 42 . . . Robot Hit Streak 29 | . 4 29 11 11 3 10 Robot Miss Streak 4 | . 3 4 4 2 . 4 Penetration Max . | . . . . . . . Secondary Targets 4 | . . . 3 . . 1 Max Gunslinging Chain 1 | . . . 1 . . 1 Shots Hit Robots 422 | . 4 187 110 41 7 73 Core Hits 196 | . 3 93 56 16 2 26 Critical Kills 2 | . . 1 . . . 1 Critical Parts Destroyed 1 | . . . . . . 1 Critical Strikes 25 | . . 10 7 2 2 4 Burn 10 | . . 8 . . . 2 Meltdown 1 | . . 1 . . . . Destroy 3 | . . 1 . . . 2 Blast 7 | . . . 5 2 . . Sever 4 | . . . 2 . 2 . Melee Attacks 18 | . . . 12 . 6 . Impact . | . . . . . . . Slashing 18 | . . . 12 . 6 . Piercing . | . . . . . . . Sneak Attacks . | . . . . . . . Combat Hostiles . | . . . . . . . Follow-up Attacks . | . . . . . . . Damage Inflicted 8505 | . 112 2864 2862 1006 160 1501 Guns 4490 | . 45 2340 1008 95 32 970 Cannons 3418 | . . 490 1540 911 . 477 Explosions 131 | . 66 29 36 . . . Melee 406 | . . . 278 . 128 . Ramming 60 | . 1 5 . . . 54 Kinetic 5049 | . 14 1265 1633 911 32 1194 Thermal 1832 | . 66 1156 262 95 . 253 Explosive . | . . . . . . . Electromagnetic 1158 | . 31 438 689 . . . Impact . | . . . . . . . Slashing 406 | . . . 278 . 128 . Piercing . | . . . . . . . Highest Corruption 6 | . 6 . . . . 6 Average Corruption 3 | . 5 . . . . 3 Corruption Purged . | . . . . . . . Corruption Blocked . | . . . . . . . Effects 22 | . 5 . . . . 17 Message Errors 8 | . 2 . . . . 6 Matter Fused 5 | . 1 . . . . 4 Heat Flow Errors 3 | . . . . . . 3 Parts Fused 1 | . 1 . . . . . Data Loss (minor) 3 | . 1 . . . . 2 Alerts 1 | . . . . . . 1 Weapon Failures 1 | . . . . . . 1 Overload Shots . | . . . . . . . Overflow Damage 26 | . . . 4 14 . 8 Projectiles 26 | . . . 4 14 . 8 Explosions . | . . . . . . . Melee . | . . . . . . . Knockbacks 27 | . . . 16 4 . 7 Impact 1 | . . . . . . 1 Kinetic 26 | . . . 16 4 . 6 Secondary . | . . . . . . . Self-Inflicted Damage 76 | . 37 . 15 . . 24 Shots 2 | . 1 . 1 . . . Rammed 14 | . . 3 . . . 11 Targets Rammed 15 | . 1 3 . . . 11 Kicked 1 | . 1 . . . . . Crushed . | . . . . . . . Highest Temperature 803 | . 12 398 70 30 . 803 Average Temperature 136 | . 12 64 20 6 . 241 Received Heat Transfer 3064 | . . 675 1541 182 . 666 Effects 25 | . . 3 . . . 22 Energy Bleed 5 | . . 1 . . . 4 Interference 5 | . . 2 . . . 3 Matter Decay 4 | . . . . . . 4 Short Circuit 3 | . . . . . . 3 Damage (minor) 2 | . . . . . . 2 Damage (major) 6 | . . . . . . 6 Siege Activations . | . . . . . . . Robots Corrupted 3 | . . . 3 . . . Combat Hostiles 2 | . . . 2 . . . Parts Fried 9 | . . 1 8 . . . Impact Corruptions . | . . . . . . . Robots Melted 1 | . . 1 . . . . Combat Hostiles 1 | . . 1 . . . . Parts Melted 5 | . . 5 . . . . Heat Transferred 4355 | . . 3158 457 185 . 555 Parts Sabotaged . | . . . . . . . Parts Stolen . | . . . . . . . Parts Stripped . | . . . . . . . Power Chain Reactions 3 | . 1 1 1 . . . Alert | -11 -10 -9 -8 -7 -7 -7 ------- Run | Yrd Mat Mat Mat Fac Was Fac Peak Influence 674 | . 94 674 404 215 47 197 Initial 252 | . . 39 252 95 10 . Average 206 | . 80 358 214 58 7 77 Maximum Alert Level 2 | . . 2 2 1 . . Low Security (%) 59 | 100 100 27 41 97 100 100 Level 1 16 | . . 17 49 2 . . Level 2 23 | . . 54 8 . . . Level 3 . | . . . . . . . Level 4 . | . . . . . . . Level 5 . | . . . . . . . High Security . | . . . . . . . Max Security . | . . . . . . . Squads Dispatched 29 | . . 9 7 4 . 9 Investigation 13 | . . 6 3 1 . 3 Extermination 4 | . . . . 1 . 3 Reinforcement 8 | . . 2 1 2 . 3 Assault 1 | . . 1 . . . . Garrison 3 | . . . 3 . . . Intercept . | . . . . . . . Searches Triggered . | . . . . . . . Construction Impeded 2 | . . . 1 1 . . Haulers Reinforced 2 | . . . . . . 2 Active Scanning Responses . | . . . . . . . Cargo Convoy Interrupts . | . . . . . . . Stealth | -11 -10 -9 -8 -7 -7 -7 --------- Run | Yrd Mat Mat Mat Fac Was Fac Distress Signals 7 | . . 5 2 . . . Communications Jammed . | . . . . . . . Distress Signals . | . . . . . . . Times Spotted 146 | . 6 55 37 13 11 24 Peak Tracking Total 7 | . 3 7 5 3 6 7 Tactical Retreats 7 | . . 1 . 1 2 3 Traps | -11 -10 -9 -8 -7 -7 -7 ------- Run | Yrd Mat Mat Mat Fac Was Fac Traps Triggered 5 | . 3 1 . 1 . . Indirectly . | . . . . . . . Trap Hack Attempts . | . . . . . . . Triggered . | . . . . . . . Disarmed 6 | . . 6 . . . . Reprogrammed . | . . . . . . . Reused . | . . . . . . . Traps Extracted . | . . . . . . . Installed . | . . . . . . . Triggered 2 | . 1 . 1 . . . Machines | -11 -10 -9 -8 -7 -7 -7 ---------- Run | Yrd Mat Mat Mat Fac Was Fac Machines Disabled 9 | . . 3 1 1 . 4 Max in Single Turn 1 | . . 1 1 1 . . Garrison Access 1 | . . . 1 . . . Machines Repaired . | . . . . . . . Machines Dismantled . | . . . . . . . Machines Sabotaged . | . . . . . . . Overloaded Fab Kills . | . . . . . . . Hacking | -11 -10 -9 -8 -7 -7 -7 --------- Run | Yrd Mat Mat Mat Fac Was Fac Machines Accessed 38 | . 3 16 8 4 . 7 Terminals 28 | . 2 10 7 4 . 5 Fabricators . | . . . . . . . Repair Stations 3 | . 1 2 . . . . Recycling Units 4 | . . 2 . . . 2 Scanalyzers 2 | . . 2 . . . . Garrison Access 1 | . . . 1 . . . Total Hacks 125 | . 7 61 25 14 . 18 Successful 73 | . 3 39 14 8 . 9 Failed 51 | . 4 21 11 6 . 9 Catastrophic 11 | . 2 3 1 2 . 3 Database Lockouts 1 | . . 1 . . . . Manual 45 | . 2 23 12 6 . 2 Terminals 90 | . 4 36 22 14 . 14 Fabricators . | . . . . . . . Repair Stations 17 | . 3 14 . . . . Recycling Units 7 | . . 3 . . . 4 Scanalyzers 8 | . . 8 . . . . Garrison Access 3 | . . . 3 . . . Terminal Hacks 49 | . 1 19 13 8 . 8 Record 7 | . . . 1 2 . 4 Part Schematic 1 | . . 1 . . . . Prototype ID Bank 4 | . . 2 1 1 . . Open DSF 1 | . . . . . . 1 Emergency Access Points 1 | . . 1 . . . . Terminal Index 4 | . . 1 1 1 . 1 Alert Level 11 | . . 4 3 3 . 1 Unreport Threat 6 | . . 2 2 1 . 1 Locate Traps 2 | . . 1 1 . . . Disarm Traps 1 | . . 1 . . . . Security Status 1 | . . 1 . . . . Reinforcement Status 1 | . . . 1 . . . Recall Investigation 2 | . . 1 1 . . . Hauler Manifests 1 | . . 1 . . . . Zone Layout 6 | . 1 3 2 . . . Fabricator Hacks . | . . . . . . . Repair Station Hacks 12 | . 2 10 . . . . Scan Component 7 | . 1 6 . . . . Repair 5 | . 1 4 . . . . Recycling Unit Hacks 4 | . . 3 . . . 1 Process 1 | . . 1 . . . . Report Inventory 3 | . . 2 . . . 1 Scanalyzer 7 | . . 7 . . . . Insert Component 4 | . . 4 . . . . Analyze 3 | . . 3 . . . . Garrison Access Hacks 1 | . . . 1 . . . Seal Access 1 | . . . 1 . . . Unauthorized Hacks . | . . . . . . . Terminals . | . . . . . . . Fabricators . | . . . . . . . Repair Stations . | . . . . . . . Recycling Units . | . . . . . . . Scanalyzers . | . . . . . . . Garrison Access . | . . . . . . . Data Cores Recovered 2 | . . . 1 . . 1 Used 1 | . . . 1 . . . Hacking Detections 33 | . 2 14 7 4 . 6 Full Trace Events 16 | . . 9 3 1 . 3 Feedback Events . | . . . . . . . Feedback Blocked . | . . . . . . . Robot Schematics Acquired . | . . . . . . . Robots Built . | . . . . . . . Authchips . | . . . . . . . Time . | . . . . . . . Total Robot Build Rating . | . . . . . . . Part Schematics Acquired 4 | . . 4 . . . . Parts Built . | . . . . . . . Authchips . | . . . . . . . Time . | . . . . . . . Total Part Build Rating . | . . . . . . . Parts Repaired 5 | . 1 4 . . . . Time 148 | . 26 122 . . . . Parts Recycled . | . . . . . . . Recycled Matter 14 | . . 14 . . . . Retrieved Matter . | . . . . . . . Retrieved Components . | . . . . . . . Parts Scanalyzed 3 | . . 3 . . . . Part Schematics Acquired 3 | . . 3 . . . . Parts Damaged . | . . . . . . . Bothacking | -11 -10 -9 -8 -7 -7 -7 ------------ Run | Yrd Mat Mat Mat Fac Was Fac Used RIF Installer . | . . . . . . . Robots Hacked . | . . . . . . . Non-combat . | . . . . . . . Combat . | . . . . . . . Robot Hacks Applied . | . . . . . . . Relay Couplers Released . | . . . . . . . Fabnet Peak Effective % . | . . . . . . . Robots Rewired . | . . . . . . . Allies Hacked 1 | . . . . . . 1 Hacks Repelled . | . . . . . . . Allies | -11 -10 -9 -8 -7 -7 -7 -------- Run | Yrd Mat Mat Mat Fac Was Fac Total Allies 20 | . . . . . 20 . Largest Group 19 | . . . . . 19 8 Highest-Rated Group 465 | . . . . . 465 212 Highest-Rated Ally 35 | . . . . . 35 31 Total Orders . | . . . . . . . Ally Attacks 148 | . . . . . 124 24 Total Damage 5370 | . . . . . 4531 839 Kills 19 | . . . . . 15 4 Allies Corrupted . | . . . . . . . Allies Melted . | . . . . . . . Intel | -11 -10 -9 -8 -7 -7 -7 ------- Run | Yrd Mat Mat Mat Fac Was Fac Robot Analysis Total . | . . . . . . . Derelict Logs Recovered . | . . . . . . . Drone Launches . | . . . . . . . Drone Recoveries . | . . . . . . . Exploration | -11 -10 -9 -8 -7 -7 -7 ------------- Run | Yrd Mat Mat Mat Fac Was Fac Turns Passed 9465 | 74 378 3806 1772 999 990 1446 Spaces Moved 3811 | 48 174 1345 658 411 515 660 Core 180 | 10 . . 2 . 63 105 Treads 2517 | . . 1109 629 128 364 287 Legs 759 | 38 174 236 27 283 1 . Wheels 221 | . . . . . . 221 Hover 134 | . . . . . 87 47 Flight . | . . . . . . . Fastest Speed 50 | 50 120 120 160 166 50 50 Average Speed 168 | 128 120 176 165 189 158 165 Slowest Speed 950 | 200 120 320 400 270 396 950 Overloaded Moves . | . . . . . . . Propulsion Burnouts . | . . . . . . . Robots Hopped . | . . . . . . . Cave-ins Triggered . | . . . . . . . Exploration Rate (%) 41 | 4 38 87 45 9 95 15 Regions Visited 6 Branch Regions . Pre-discovered Areas . | . . . . . . . Known Exits Taken . | . . . . . . . Unknown Exits Taken 4 | 1 1 1 1 . . . Scrap Searched . | . . . . . . . Spaces Dug . | . . . . . . . Terrain Destroyed 42 | . 4 . 29 9 . . Melee . | . . . . . . . Projectile 32 | . . . 23 9 . . AOE 10 | . 4 . 6 . . . Terrain Rammed . | . . . . . . . Walls Destroyed . | . . . . . . . Machines Disabled . | . . . . . . . Actions | -11 -10 -9 -8 -7 -7 -7 --------- Run | Yrd Mat Mat Mat Fac Was Fac Total 6166 | 57 334 2500 1164 562 673 876 Wait 1697 | . 151 882 332 94 117 121 Move 3806 | 47 173 1344 657 411 514 660 Hop . | . . . . . . . Pick Up 77 | 4 4 42 19 2 6 . Fast Attach 67 | 6 . 19 12 9 12 9 Attach 29 | . . 5 14 2 4 4 Detach 8 | . . 3 . 2 1 2 Swap 46 | . 1 20 17 1 5 2 Drop 73 | . . 35 20 6 7 5 Fire 330 | . 4 147 81 35 1 62 Melee 18 | . . . 12 . 6 . Ram 11 | . . . . . . 11 Kick 1 | . 1 . . . . . Crush 3 | . . 3 . . . . Escape Stasis . | . . . . . . . Rewire . | . . . . . . . Trap . | . . . . . . . Miscellaneous . | . . . . . . . Route ------- -11/Scrapyard -10/Materials (discovered 2 exits: *Mat / [*Min]) -9/Materials (discovered 4 exits: *Mat x3 / [*Min]) -8/Materials (discovered 2 exits: *Fac x2) -7/Factory -7/Waste -7/Factory History --------- Turn | Location | Event 17 | -11/Scrapyard | Discovered new exit (range 15) 75 | -11/Scrapyard | Entered Materials 112 | -10/Materials | Discovered new exit (range 8) 231 | -10/Materials | Repaired Aluminum Leg 305 | -10/Materials | Build established: Mutant 430 | -10/Materials | Discovered new exit (range 15) 453 | -10/Materials | Entered another Materials area 453 | -9/Materials | Evolved 2 slots: Utility x2 532 | -9/Materials | Discovered new exit (range 15) 1417 | -9/Materials | Build established: Scavenger-Mutant 1807 | -9/Materials | Build established: Mutant 1985 | -9/Materials | Discovered new exit (range 8) 2251 | -9/Materials | Build established: Scavenger-Mutant 2574 | -9/Materials | Repaired Beam Rifle 2607 | -9/Materials | Repaired Beam Rifle 2641 | -9/Materials | Repaired Autogun 2668 | -9/Materials | Repaired Lgt. Treads 2764 | -9/Materials | Discovered new exit (range 14) 2985 | -9/Materials | Central database locked down 3147 | -9/Materials | Build established: Mutant 3787 | -9/Materials | Discovered new exit (range 16) 4053 | -9/Materials | First assault squad dispatched 4259 | -9/Materials | Entered another Materials area 4259 | -8/Materials | Evolved 2 slots: Propulsion x1, Utility x1 4904 | -8/Materials | Discovered new exit (range 10) 5320 | -8/Materials | Lost 7 parts (1p3n2u1w) 5373 | -8/Materials | Core integrity fell below 50% 5419 | -8/Materials | Lost 8 parts (1p3n2u2w) 5556 | -8/Materials | Core integrity fell below 20% 6026 | -8/Materials | Discovered new exit (range 4) 6031 | -8/Materials | Entered Factory 6031 | -7/Factory | Evolved 2 slots: Utility x2 6737 | -7/Factory | Build established: Hacker-Mutant 7030 | -7/Factory | Sucked down chute 7030 | -7/Factory | Entered Waste 7031 | -7/Waste | Met a frightened Derelict 7046 | -7/Waste | Spotted C-40 Crusher 7066 | -7/Waste | Spotted C-40 Crusher 7074 | -7/Waste | Spotted C-40 Crusher 7082 | -7/Waste | Crushed by Compactor (1 part destroyed, 2 dropped) 7084 | -7/Waste | Spotted C-40 Crusher 7085 | -7/Waste | Crushed by Compactor (1 part destroyed, 2 dropped) 7088 | -7/Waste | Crushed by Compactor (1 part destroyed) 7094 | -7/Waste | Crushed by Compactor (1 part destroyed, 1 dropped) 7099 | -7/Waste | Spotted C-40 Crusher 7106 | -7/Waste | Crushed by Compactor (0 parts destroyed, 1 dropped) 7112 | -7/Waste | Crushed by Compactor (1 part destroyed, 1 dropped) 7115 | -7/Waste | Crushed by Compactor (1 part destroyed) 7116 | -7/Waste | Core integrity fell below 50% 7122 | -7/Waste | Spotted C-40 Crusher 7132 | -7/Waste | Warlord forces began an assault 7146 | -7/Waste | Lost 11 parts (1p3n3u4w) 7292 | -7/Waste | Allies destroyed C-40 Crusher 7294 | -7/Waste | Allies destroyed C-40 Crusher 7316 | -7/Waste | Allies destroyed C-40 Crusher 7323 | -7/Waste | Allies destroyed C-40 Crusher 7352 | -7/Waste | Lost 11 allies 7392 | -7/Waste | Build established: Mutant 7852 | -7/Waste | Discovered new exit (range 15) 7906 | -7/Waste | Found Broken Imp. Powered Armor 8020 | -7/Waste | Entered Factory 8020 | -7/Factory | Accompanied by 8 allies 8120 | -7/Factory | Lost 4 allies 8678 | -7/Factory | Lost 3 allies 9364 | -7/Factory | Released all parts (5) 9367 | -7/Factory | Core integrity fell below 20% 9394 | -7/Factory | Lost 6 parts (1n4u1w) 9466 | -7/Factory | Destroyed by P-60 Hacker with Shock Rifle Last Messages --------------- 09364_ Released Beamcaster. 09364_ Released Broken Mic. Nuclear Core. 09367_ Overheating: Energy bleed (-12). 09387_ O-24 Administrator: "IFF HANDSHAKE FAILED. SECURING TERMINAL." 09390_ Acquired Hacking Suite. 09391_ ALERT: Hostiles spotted, dispatching reinforcements to Terminal F015. 09401_ Slammed into K-01 Serf. 09403_ K-01 Serf cleans the Assembly Bed. 09408_ System corrupted: Matter fused (-5). 09410_ Connecting with Recycling Unit... 09410_ ALERT: Suspicious activity at Recycling Unit F006. Dispatching Investigation squad. 09428_ K-01 Serf destroyed. 09432_ M-28 Smith repairs Gravmag System. 09442_ M-28 Smith repairs Imp. Heat Sink. 09444_ Arm. Huge Wheel destroyed. 09444_ Slammed into P-60 Hacker. 09466_ ICO21RJ